bitfinex/quotes_SOLUSD_20250806
["timestamp","ask_amount","ask_price","bid_price","bid_amount"]
[1754489613598,8.17268736,165.77,165.73,0.71]
[1754489613893,8.17268736,165.76,165.73,0.71]
[1754489614420,8.17268736,165.76,165.72,6.03427468]
[1754489614593,8.17268736,165.76,165.73,0.71]
[1754489614794,8.17268736,165.75,165.72,6.03427468]
[1754489615016,8.17268736,165.75,165.71,6.0346052]
[1754489615188,8.17268736,165.75,165.7,0.71]
[1754489615189,8.17268736,165.73,165.7,0.71]
[1754489615394,8.17268736,165.73,165.7,6.74494572]
[1754489615899,8.17268736,165.74,165.7,6.74494572]
[1754489616092,8.17268736,165.74,165.7,6.03494572]
[1754489616420,8.17268736,165.74,165.71,0.71]
[1754489616592,8.17268736,165.74,165.7,6.03494572]
[1754489616792,8.17268736,165.73,165.7,6.03494572]
[1754489617439,8.17268736,165.73,165.69,6.03536725]
[1754489617723,8.17268736,165.73,165.7,0.71]
[1754489617902,45.16,165.75,165.69,6.03536725]
[1754489617903,8.17268736,165.72,165.69,6.03536725]
[1754489618091,51.19322486,165.75,165.7,0.06]
[1754489618291,8.17268736,165.71,165.7,0.06]
[1754489619693,8.77268736,165.71,165.7,0.06]
[1754489620595,14.80732618,165.71,165.7,0.06]
[1754489621007,18.85368647,165.71,165.7,0.06]
[1754489621326,40.80732618,165.71,165.7,0.06]
[1754489621719,34.77268736,165.71,165.7,0.06]
[1754489622026,40.80732618,165.71,165.7,0.06]
[1754489622227,44.85105379,165.71,165.7,0.06]
[1754489622525,44.84873874,165.71,165.7,0.06]
[1754489623331,29.91354175,165.71,165.7,0.06]
[1754489624210,26.0,165.69,165.68,0.2]
[1754489624414,71.85707041,165.69,165.68,0.2]
[1754489624619,53.31268736,165.69,165.68,0.2]
[1754489625427,68.41890293,165.69,165.68,0.2]
[1754489625610,74.45427018,165.69,165.68,0.2]
[1754489625922,76.87418618,165.69,165.68,0.2]
[1754489626919,15.10621557,165.68,165.67,0.2]
[1754489627131,23.87890293,165.68,165.67,0.2]
[1754489627297,26.0,165.66,165.65,0.2]
[1754489627504,78.71268736,165.66,165.65,0.2]
[1754489627705,85.34914757,165.66,165.65,0.2]
[1754489628125,84.74914757,165.66,165.65,0.2]
[1754489629141,85.34914757,165.66,165.65,0.2]
[1754489629320,84.74914757,165.66,165.65,0.2]
[1754489629636,85.34914757,165.66,165.65,0.2]
[1754489631755,87.76935657,165.66,165.65,0.2]
[1754489633833,8.17268736,165.64,165.63,0.2]
[1754489634028,67.79890293,165.64,165.63,0.2]
[1754489634230,26.0,165.61,165.6,0.06]
[1754489634436,108.009873,165.61,165.6,0.06]
[1754489634646,108.609873,165.61,165.6,0.06]
[1754489635158,84.73097007,165.61,165.6,0.06]
[1754489636437,78.69268736,165.61,165.6,0.06]
[1754489636958,78.69268736,165.61,165.6,0.77]
[1754489637557,78.69268736,165.61,165.6,0.06]
[1754489639235,84.93311736,165.61,165.6,0.06]
[1754489639437,90.97140007,165.61,165.6,0.06]
[1754489639833,64.97140007,165.61,165.6,0.06]
[1754489640143,50.76043,165.61,165.6,0.06]
[1754489640352,58.93311736,165.61,165.6,0.77]
[1754489640526,64.97140007,165.61,165.6,0.06]
[1754489641152,58.93311736,165.61,165.6,0.06]
[1754489641556,64.97140007,165.61,165.6,0.06]
[1754489641755,65.57140007,165.61,165.6,0.06]
[1754489642063,6.24043,165.61,165.6,0.77]
[1754489642269,43.52,165.69,165.6,8.94268736]
[1754489642558,2.419916,165.66,165.62,8.17268736]
[1754489642760,52.69268736,165.66,165.63,0.71]
[1754489642944,8.17268736,165.64,165.61,0.72]
[1754489643146,8.17268736,165.62,165.61,0.72]
[1754489643451,8.17268736,165.62,165.6,0.06]
[1754489643452,8.17268736,165.63,165.6,6.09857054]
[1754489643645,8.17268736,165.61,165.6,0.06]
[1754489643840,52.67268736,165.62,165.6,0.06]
[1754489644065,34.172687,165.66,165.6,0.06]
[1754489644066,52.67268736,165.64,165.6,0.06]
[1754489644262,52.67268736,165.64,165.6,6.09854888]
[1754489644448,8.17268736,165.62,165.61,0.72]
[1754489644644,52.67268736,165.62,165.61,0.72]
[1754489644848,44.5,165.62,165.61,0.72]
[1754489645980,70.5,165.63,165.61,0.72]
[1754489646144,70.5,165.63,165.61,6.7582715]
[1754489646346,8.172687,165.66,165.61,6.75812198]
[1754489646573,44.5,165.65,165.62,0.72]
[1754489647088,26.03,165.69,165.64,6.03718908]
[1754489647248,0.03,165.69,165.66,8.17268736]
[1754489647571,0.03,165.69,165.67,0.72]
[1754489647948,8.17268736,165.68,165.65,0.72]
[1754489648149,8.17268736,165.66,165.62,6.03764434]
[1754489648365,44.5,165.68,165.63,8.17268736]
[1754489648562,52.67268736,165.68,165.63,8.17268736]
[1754489648777,52.67268736,165.68,165.64,0.72]
[1754489648974,52.67268736,165.68,165.65,0.72]
[1754489649145,8.17268736,165.67,165.62,8.17268736]
[1754489649349,8.17268736,165.65,165.63,0.72]
[1754489649854,8.17268736,165.65,165.61,0.72]
[1754489650055,8.17268736,165.65,165.6,6.09860542]
[1754489650248,8.17268736,165.65,165.62,0.72]
[1754489650773,8.17268736,165.65,165.63,0.72]
[1754489650970,44.48,165.67,165.63,0.72]
[1754489651183,44.48,165.67,165.6,0.06]
[1754489651349,8.17268736,165.66,165.61,0.72]
[1754489651552,8.17268736,165.65,165.62,0.72]
[1754489651753,8.17268736,165.66,165.63,0.72]
[1754489651953,8.17268736,165.66,165.61,8.17268736]
[1754489652179,8.17268736,165.66,165.64,0.72]
[1754489652682,8.17268736,165.66,165.62,0.72]
[1754489652878,8.17268736,165.65,165.62,0.72]
[1754489653077,70.48,165.67,165.62,0.72]
[1754489653557,8.17268736,165.66,165.63,0.72]
[1754489653967,8.17268736,165.65,165.6,14.99122321]
[1754489654277,8.17268736,165.65,165.62,0.72]
[1754489654980,8.17268736,165.64,165.6,6.81853585]
[1754489655185,84.751223,165.67,165.61,0.72]
[1754489655360,8.17268736,165.65,165.61,0.72]
[1754489655675,8.17268736,165.65,165.62,0.72]
[1754489656198,8.17268736,165.63,165.6,0.78]
[1754489656378,8.17268736,165.61,165.6,0.06]
[1754489657163,53.23268736,165.61,165.6,0.06]
[1754489657559,44.46,165.61,165.6,0.06]
[1754489657856,52.63268736,165.61,165.6,0.06]
[1754489658391,26.0,165.61,165.6,0.78]
[1754489658887,44.44,165.63,165.6,8.95268736]
[1754489659064,52.61268736,165.63,165.61,0.72]
[1754489659267,52.61268736,165.63,165.6,0.06]
[1754489659465,8.17268736,165.61,165.6,0.06]
[1754489661366,8.17268736,165.62,165.6,0.06]
[1754489661880,8.17268736,165.61,165.6,0.06]
[1754489662667,8.17268736,165.62,165.6,0.06]
[1754489663367,52.61268736,165.63,165.6,0.78]
[1754489663759,8.17268736,165.62,165.6,0.06]
[1754489663961,52.61268736,165.61,165.6,0.06]
[1754489664158,26.0,165.59,165.58,0.06]
[1754489664396,78.61268736,165.59,165.58,0.06]
[1754489664763,81.03362836,165.59,165.58,0.06]
[1754489664979,72.860941,165.59,165.58,0.06]
[1754489665184,81.03362836,165.59,165.58,0.06]
[1754489665368,85.09389713,165.59,165.58,0.06]
[1754489665872,76.92120977,165.59,165.58,0.06]
[1754489666066,85.09389713,165.59,165.58,0.06]
[1754489666581,76.92120977,165.59,165.58,0.06]
[1754489666892,85.09389713,165.59,165.58,0.06]
[1754489667258,0.03,165.63,165.58,0.78]
[1754489667474,8.20268736,165.63,165.58,8.95268736]
[1754489667680,52.59268736,165.62,165.59,0.72]
[1754489667880,44.42,165.62,165.59,0.72]
[1754489668084,52.59268736,165.62,165.59,0.72]
[1754489668284,44.42,165.62,165.59,0.72]
[1754489668482,52.59268736,165.62,165.59,0.72]
[1754489668887,8.202688,165.63,165.61,8.17268736]
[1754489669196,8.202688,165.63,165.59,0.72]
[1754489669197,8.17268736,165.62,165.59,0.72]
[1754489669374,8.17268736,165.62,165.58,0.06]
[1754489669576,44.42,165.61,165.58,0.78]
[1754489669877,44.42,165.61,165.58,0.06]
[1754489670080,44.42,165.61,165.59,0.72]
[1754489670272,52.59268736,165.61,165.58,0.06]
[1754489670489,8.17268736,165.6,165.58,0.06]
[1754489670787,44.42,165.59,165.58,0.06]
[1754489671395,63.2344935,165.59,165.58,0.06]
[1754489671778,78.34070907,165.59,165.58,0.06]
[1754489673965,70.16802171,165.59,165.58,0.06]
[1754489674167,78.34070907,165.59,165.58,0.06]
[1754489674866,41.10621557,165.56,165.55,0.2]
[1754489675070,97.74169706,165.56,165.55,0.2]
[1754489675275,104.32180336,165.56,165.55,0.2]
[1754489675589,104.31853702,165.56,165.55,0.2]
[1754489675973,15.10621557,165.51,165.46,0.69]
[1754489676220,15.10621557,165.51,165.44,0.75]
[1754489676221,8.17268736,165.47,165.44,0.75]
[1754489676406,44.4,165.46,165.44,0.75]
[1754489676699,44.4,165.46,165.45,0.69]
[1754489677475,44.4,165.46,165.44,0.06]
[1754489677677,34.17268736,165.45,165.44,0.06]
[1754489678102,26.0,165.45,165.44,0.06]
[1754489678406,4.78939204,165.52,165.44,8.92268736]
[1754489678407,5.07534213,165.52,165.44,8.92268736]
[1754489678578,26.0,165.48,165.45,8.86268736]
[1754489678774,44.4,165.47,165.46,0.69]
[1754489679271,26.0,165.5,165.46,0.69]
[1754489679585,44.4,165.49,165.47,0.69]
[1754489679784,44.4,165.49,165.48,0.69]
[1754489680194,52.57268736,165.49,165.46,0.69]
[1754489680394,52.57268736,165.49,165.44,0.06]
[1754489680395,8.17268736,165.47,165.44,0.06]
[1754489680595,52.57268736,165.46,165.44,0.06]
[1754489680778,44.4,165.45,165.44,0.75]
[1754489682000,44.4,165.45,165.44,8.92268736]
[1754489682306,44.4,165.47,165.44,14.96711199]
[1754489682514,44.4,165.47,165.45,0.69]
[1754489682719,52.57268736,165.47,165.44,0.06]
[1754489682895,8.17268736,165.46,165.44,0.06]
[1754489683220,44.4,165.45,165.44,8.23268736]
[1754489683404,26.0,165.5,165.44,14.27717478]
[1754489683606,44.4,165.49,165.45,8.17268736]
[1754489683816,44.4,165.49,165.46,0.69]
[1754489684118,44.4,165.49,165.45,8.17268736]
[1754489684119,44.4,165.49,165.47,0.69]
[1754489685018,44.4,165.49,165.45,8.17268736]
[1754489685204,44.4,165.49,165.47,0.69]
[1754489685405,44.4,165.49,165.48,0.69]
[1754489686425,14.216791,165.54,165.48,14.9057137]
[1754489686635,44.38,165.53,165.51,8.17268736]
[1754489686806,44.38,165.53,165.5,8.17268736]
[1754489686996,44.38,165.53,165.51,8.86268736]
[1754489687336,44.38,165.56,165.52,8.86268736]
[1754489687633,44.38,165.56,165.55,6.04047115]
[1754489687929,44.38,165.56,165.55,0.69]
[1754489688746,52.55268736,165.56,165.52,0.69]
[1754489689298,8.17268736,165.54,165.5,0.69]
[1754489689517,44.38,165.53,165.5,0.69]
[1754489689738,8.17268736,165.52,165.47,8.86268736]
[1754489690036,8.17268736,165.52,165.47,8.17268736]
[1754489690240,8.17268736,165.51,165.48,0.69]
[1754489690411,8.17268736,165.49,165.48,0.06]
[1754489690608,52.55268736,165.49,165.48,0.06]
[1754489691737,58.59534854,165.49,165.48,0.06]
[1754489692043,59.13534854,165.49,165.48,0.06]
[1754489692407,85.13534854,165.49,165.48,0.06]
[1754489694549,100.24156411,165.49,165.48,0.06]
[1754489694841,104.27647232,165.49,165.48,0.06]
[1754489695004,86.44915968,165.49,165.48,0.06]
[1754489695347,41.10621557,165.45,165.44,0.06]
[1754489695544,41.10621557,165.45,165.43,0.55337127]
[1754489695545,97.67406941,165.45,165.43,0.55337127]
[1754489695839,18.73234126,165.44,165.43,0.55337127]
[1754489696209,18.73064542,165.44,165.43,0.55337127]
[1754489698305,21.15452042,165.44,165.43,0.55337127]
[1754489698506,20.67452042,165.44,165.43,0.55337127]
[1754489698704,61.00104978,165.44,165.43,0.55337127]
[1754489699142,61.48104978,165.44,165.43,0.55337127]
[1754489699839,76.58726535,165.44,165.43,0.55337127]
[1754489700047,80.61729225,165.44,165.43,0.55337127]
[1754489700338,80.95656236,165.44,165.43,0.55337127]
[1754489701331,87.00104978,165.44,165.43,0.55337127]
[1754489701947,78.82836242,165.44,165.43,0.55337127]
[1754489702236,61.48104978,165.44,165.43,0.55337127]
[1754489702449,76.58726535,165.44,165.43,0.55337127]
[1754489703013,80.6178124,165.44,165.43,0.55337127]
[1754489703408,80.6178124,165.44,165.42,0.06]
[1754489703409,15.10621557,165.43,165.42,0.06]
[1754489703612,23.27890293,165.43,165.42,0.06]
[1754489703842,8.17268736,165.43,165.42,0.06]
[1754489704022,34.17268736,165.43,165.42,0.75]
[1754489704820,8.17268736,165.43,165.42,0.75]
[1754489705935,8.17268736,165.43,165.42,0.06]
[1754489706462,8.17268736,165.43,165.42,0.75]
[1754489706631,8.17268736,165.43,165.42,0.06]
[1754489706820,14.21754016,165.43,165.42,0.06]
[1754489707952,8.17268736,165.43,165.42,0.06]
[1754489708263,14.21754016,165.43,165.42,0.06]
[1754489708758,8.17268736,165.43,165.42,0.06]
[1754489708947,14.21754016,165.43,165.42,0.06]
[1754489710023,8.17268736,165.43,165.42,0.06]
[1754489710453,70.36,165.44,165.42,0.75]
[1754489710620,8.17268736,165.43,165.42,0.06]
[1754489711625,8.17268736,165.43,165.42,0.75]
[1754489712028,8.17268736,165.43,165.42,0.06]
[1754489712565,8.17268736,165.43,165.42,0.75]
[1754489713057,52.51268736,165.43,165.42,0.75]
[1754489713359,52.51268736,165.43,165.42,0.06]
[1754489714630,52.51268736,165.43,165.42,0.75]
[1754489715367,52.51268736,165.43,165.42,0.06]
[1754489715527,56.5550235,165.43,165.42,0.06]
[1754489715729,52.51268736,165.43,165.42,0.06]
[1754489715929,56.55502385,165.43,165.42,0.06]
[1754489716428,52.51268736,165.43,165.42,0.06]
[1754489717131,48.38459689,165.43,165.42,0.06]
[1754489717336,56.55728425,165.43,165.42,0.06]
[1754489718867,53.50990155,165.43,165.42,0.75]
[1754489719172,53.48990155,165.43,165.42,0.75]
[1754489719580,0.03,165.46,165.42,5.87530466]
[1754489719864,44.35,165.46,165.44,5.12530466]
[1754489720082,44.35,165.46,165.45,5.81530466]
[1754489720249,0.03,165.46,165.45,0.69]
[1754489721274,44.33,165.46,165.45,0.69]
[1754489721460,44.33,165.46,165.45,6.73412209]
[1754489721641,44.33,165.46,165.45,0.69]
[1754489721837,0.03,165.46,165.45,0.69]
[1754489725645,0.03,165.46,165.45,14.92771078]
[1754489725851,8.19358869,165.55,165.46,15.10621557]
[1754489726172,44.28,165.54,165.52,8.19358869]
[1754489726381,44.28,165.54,165.53,0.69]
[1754489727455,44.28,165.54,165.53,14.92478968]
[1754489727669,8.19358869,165.58,165.53,14.92478968]
[1754489727973,44.28,165.57,165.54,8.88358869]
[1754489728165,44.28,165.57,165.55,0.69]
[1754489728473,44.28,165.57,165.56,0.69]
[1754489730175,44.26,165.59,165.56,14.92369499]
[1754489730374,44.26,165.59,165.57,0.69]
[1754489730553,52.45358869,165.59,165.57,0.69]
[1754489730883,8.19358869,165.58,165.55,0.69]
[1754489731049,0.03,165.6,165.51,15.39053871]
[1754489731050,8.19358869,165.56,165.53,0.69]
[1754489731254,44.26,165.56,165.54,0.69]
[1754489732779,44.26,165.56,165.52,8.19358869]
[1754489733073,44.29,165.56,165.55,0.66]
[1754489733581,44.29,165.56,165.51,15.10621557]
[1754489733582,52.48358869,165.56,165.51,0.66]
[1754489733797,8.19358869,165.55,165.51,0.66]
[1754489734090,52.43358869,165.54,165.51,0.66]
[1754489734289,44.24,165.54,165.51,0.66]
[1754489734589,0.03,165.56,165.53,8.19358869]
[1754489734756,0.03,165.56,165.55,8.19358869]
[1754489735113,0.03,165.6,165.55,23.95980426]
[1754489735285,0.03,165.6,165.58,8.19358869]
[1754489735811,0.03,165.6,165.59,23.95980426]
[1754489735965,0.1,165.61,165.6,8.19358869]
[1754489736166,0.03,165.62,165.6,8.85358869]
[1754489736392,0.03,165.62,165.61,23.95980426]
[1754489736592,0.03,165.62,165.61,8.85358869]
[1754489736761,0.03,165.62,165.57,26.0]
[1754489736961,8.22358869,165.62,165.58,0.66]
[1754489737162,8.22358869,165.62,165.58,6.69910538]
[1754489737163,0.03,165.62,165.58,6.69910538]
[1754489737400,0.03,165.62,165.59,0.66]
[1754489737900,8.22358869,165.62,165.56,21.80625837]
[1754489738202,0.03,165.62,165.57,0.66]
[1754489738387,8.19358869,165.6,165.57,0.66]
[1754489738568,52.41358869,165.6,165.55,14.2339881]
[1754489738914,8.19358869,165.56,165.49,8.19358869]
[1754489739204,8.19358869,165.54,165.49,6.70256738]
[1754489739509,8.19358869,165.53,165.5,0.66]
[1754489739692,8.19358869,165.52,165.49,0.66]
[1754489739863,8.19358869,165.53,165.49,0.66]
[1754489740069,44.22,165.54,165.5,0.66]
[1754489740299,52.41358869,165.54,165.5,0.66]
[1754489740497,52.41358869,165.54,165.47,6.70326]
[1754489740498,8.19358869,165.52,165.47,6.70326]
[1754489740707,8.19358869,165.49,165.44,0.66]
[1754489740879,8.19358869,165.47,165.44,0.66]
[1754489741078,8.19358869,165.45,165.42,0.06]
[1754489741326,8.19358869,165.45,165.42,6.10517664]
[1754489741483,8.19358869,165.45,165.42,0.06]
[1754489742304,8.19358869,165.45,165.42,0.72]
[1754489743408,8.19358869,165.45,165.42,6.76519194]
[1754489743583,8.19358869,165.45,165.42,0.72]
[1754489743777,8.19358869,165.46,165.42,6.76520742]
[1754489744177,44.89,165.49,165.42,6.76520742]
[1754489744375,8.19358869,165.47,165.42,14.95879611]
[1754489744776,0.67,165.49,165.43,8.85358869]
[1754489745108,52.41358869,165.51,165.45,8.19358869]
[1754489745287,44.22,165.51,165.47,14.23698024]
[1754489745502,52.41358869,165.51,165.46,14.23726199]
[1754489745811,44.22,165.51,165.48,8.19358869]
[1754489746406,44.2,165.54,165.5,8.19358869]
[1754489746581,44.2,165.54,165.51,8.85358869]
[1754489746786,44.2,165.54,165.52,0.66]
[1754489747192,44.2,165.54,165.47,15.10621557]
[1754489747193,44.2,165.54,165.5,8.19358869]
[1754489747376,44.2,165.54,165.5,8.85358869]
[1754489747579,44.2,165.54,165.51,0.66]
[1754489748112,44.2,165.54,165.47,15.10621557]
[1754489748113,53.06358869,165.54,165.49,8.19358869]
[1754489748607,52.39358869,165.54,165.49,8.85358869]
[1754489749411,8.86358869,165.53,165.48,14.23661503]
[1754489749596,8.19358869,165.52,165.47,14.23688268]
[1754489749907,8.19358869,165.53,165.48,8.85358869]
[1754489750212,8.19358869,165.53,165.49,0.66]
[1754489750599,8.19358869,165.53,165.48,8.19358869]
[1754489750813,8.86358869,165.52,165.47,6.10329399]
[1754489750988,8.19358869,165.49,165.47,0.06]
[1754489751179,52.39358869,165.49,165.47,0.06]
[1754489751378,44.2,165.49,165.47,0.06]
[1754489754187,44.18,165.51,165.48,0.66]
[1754489754386,26.0,165.54,165.49,8.19358869]
[1754489754589,53.04358869,165.53,165.48,8.85358869]
[1754489754786,53.04358869,165.53,165.48,0.66]
[1754489754986,53.04358869,165.53,165.48,8.85358869]
[1754489755409,44.85,165.53,165.48,14.89651424]
[1754489755618,52.37358869,165.53,165.48,6.70292555]
[1754489755912,52.37358869,165.53,165.48,14.89651424]
[1754489756501,0.67,165.55,165.48,14.89651424]
[1754489756502,44.18,165.55,165.52,8.19358869]
[1754489757325,44.18,165.55,165.52,8.85358869]
[1754489757649,44.18,165.55,165.54,8.19358869]
[1754489758133,8.86358869,165.6,165.54,0.66]
[1754489758438,44.18,165.59,165.54,8.85358869]
[1754489758639,44.18,165.59,165.56,8.19358869]
[1754489758943,44.18,165.59,165.55,8.85358869]
[1754489759519,53.04358869,165.59,165.54,8.19358869]
[1754489759839,44.85,165.59,165.54,8.19358869]
[1754489760049,52.37358869,165.59,165.54,8.19358869]
[1754489760337,8.19358869,165.57,165.52,8.19358869]
[1754489760547,44.18,165.56,165.52,8.19358869]
[1754489760727,44.85,165.56,165.51,14.23518013]
[1754489760907,44.18,165.56,165.5,26.0]
[1754489761114,8.19358869,165.52,165.47,15.82621557]
[1754489761354,8.19358869,165.51,165.47,0.06]
[1754489761712,0.67,165.51,165.47,0.06]
[1754489762046,8.19358869,165.51,165.47,0.06]
[1754489762226,8.86358869,165.5,165.47,0.06]
[1754489762429,8.19358869,165.48,165.47,0.06]
[1754489762817,34.86358869,165.48,165.47,0.06]
[1754489763024,38.90945651,165.48,165.47,0.06]
[1754489763738,44.95248285,165.48,165.47,0.06]
[1754489763940,60.05869842,165.48,165.47,0.06]
[1754489764121,42.25228711,165.48,165.47,0.06]
[1754489764740,47.29047092,165.48,165.47,1e-08]
[1754489765048,47.29047092,165.48,165.42,0.06]
[1754489765049,26.0,165.45,165.42,0.06]
[1754489765247,26.0,165.41,165.4,0.06]
[1754489765429,82.39945651,165.41,165.4,0.06]
[1754489765615,89.11504021,165.41,165.31,0.67]
[1754489765820,8.19358869,165.34,165.31,0.67]
[1754489766541,44.16,165.35,165.31,0.67]
[1754489766712,44.16,165.35,165.32,0.87]
[1754489766909,8.19358869,165.34,165.32,0.87]
[1754489768522,44.16,165.35,165.32,0.2]
[1754489768722,8.19358869,165.34,165.32,0.2]
[1754489768932,8.19358869,165.33,165.32,0.2]
[1754489770736,8.86358869,165.33,165.32,0.2]
[1754489771217,40.91209773,165.33,165.32,0.2]
[1754489771745,14.91209773,165.33,165.32,0.2]
[1754489771934,26.0,165.3,165.27,0.2]
[1754489772113,8.19358869,165.28,165.27,0.2]
[1754489772532,10.61922769,165.28,165.27,0.2]
[1754489772736,11.28922769,165.28,165.27,0.2]
[1754489773538,11.28922769,165.28,165.09,53.58]
[1754489773539,26.0,165.24,165.16,0.67]
[1754489773848,8.19358869,165.19,165.14,8.86358869]
[1754489774027,26.0,165.24,165.17,8.19358869]
[1754489774230,8.19358869,165.22,165.18,0.67]
[1754489774616,8.19358869,165.2,165.18,0.67]
[1754489774853,52.37358869,165.2,165.15,8.86358869]
[1754489775020,8.19358869,165.19,165.15,0.67]
[1754489775440,52.37358869,165.2,165.16,0.67]
[1754489775644,8.19358869,165.19,165.14,8.19358869]
[1754489775821,8.19358869,165.19,165.16,0.67]
[1754489776121,8.19358869,165.18,165.13,8.86358869]
[1754489776320,8.19358869,165.18,165.11,26.0]
[1754489776321,8.19358869,165.16,165.11,8.86358869]
[1754489776517,44.18,165.17,165.13,8.19358869]
[1754489776722,44.18,165.17,165.12,8.19358869]
[1754489776964,44.18,165.17,165.13,8.86358869]
[1754489777250,44.18,165.17,165.13,0.67]
[1754489777425,8.19358869,165.16,165.11,8.19358869]
[1754489777629,52.37358869,165.17,165.12,8.86358869]
[1754489777931,8.19358869,165.16,165.13,0.67]
[1754489778141,44.18,165.17,165.11,6.05645057]
[1754489778340,8.19358869,165.16,165.11,14.25003926]
[1754489778549,52.37358869,165.17,165.12,8.86358869]
[1754489778857,52.37358869,165.17,165.12,0.67]
[1754489779046,8.19358869,165.16,165.12,0.67]
[1754489779245,8.19358869,165.16,165.11,6.05645057]
[1754489779547,44.18,165.17,165.15,8.19358869]
[1754489779750,44.18,165.17,165.16,8.86358869]
[1754489779935,44.18,165.17,165.14,14.918906]
[1754489780135,44.18,165.17,165.15,0.67]
[1754489780466,0.67,165.25,165.16,8.86358869]
[1754489780764,44.18,165.24,165.22,8.19358869]
[1754489780921,44.18,165.25,165.23,8.19358869]
[1754489781122,43.58,165.32,165.17,41.10621557]
[1754489781123,8.19358869,165.3,165.24,8.86358869]
[1754489781360,44.18,165.29,165.25,8.19358869]
[1754489782029,8.19358869,165.26,165.21,0.67]
[1754489782253,8.19358869,165.22,165.18,0.67]
[1754489782440,8.19358869,165.19,165.15,6.72510142]
[1754489782766,12.41169663,165.17,165.12,13.08169663]
[1754489783053,12.41169663,165.16,165.12,0.67]
[1754489783637,44.18,165.15,165.1,6.05692605]
[1754489783845,56.59169663,165.15,165.1,6.05692605]
[1754489784038,56.59169663,165.15,165.1,18.46862268]
[1754489784242,56.59169663,165.15,165.1,19.13862268]
[1754489784533,12.41169663,165.14,165.09,12.41169663]
[1754489784744,12.41169663,165.12,165.08,6.0573618]
[1754489784937,56.59169663,165.15,165.09,13.08169663]
[1754489785148,12.41169663,165.14,165.09,13.08169663]
[1754489785352,12.41169663,165.14,165.09,0.67]
[1754489785651,12.41169663,165.14,165.08,6.0573618]
[1754489785652,0.67,165.14,165.08,6.0573618]
[1754489785857,12.41169663,165.12,165.06,32.72807393]
[1754489786061,44.18,165.11,165.07,18.46959258]
[1754489786376,56.59169663,165.11,165.06,39.08169663]
[1754489786660,56.59169663,165.11,165.05,18.47037535]
[1754489786661,44.18,165.11,165.05,18.47037535]
[1754489786857,12.41169663,165.1,165.05,6.05867872]
[1754489787059,12.41169663,165.08,165.03,13.08169663]
[1754489787258,56.59169663,165.07,165.0,15.82091877]
[1754489787443,26.0,165.14,165.05,12.41169663]
[1754489787444,0.67,165.14,165.05,12.41169663]
[1754489787652,0.67,165.14,165.01,6.73023877]
[1754489787653,44.18,165.13,165.06,13.08169663]
[1754489787851,12.41169663,165.11,165.06,13.08169663]
[1754489788049,56.59169663,165.13,165.08,12.41169663]
[1754489788372,56.59169663,165.13,165.03,30.53867861]
[1754489788373,44.18,165.12,165.05,0.67]
[1754489788558,12.41169663,165.08,165.03,0.67]
[1754489788879,12.41169663,165.08,164.95,10.0]
[1754489788880,70.18,165.07,164.97,24.94277518]
[1754489789037,12.41169663,165.01,164.97,6.73170818]
[1754489789238,12.41169663,165.01,164.98,0.67]
[1754489789441,44.18,165.02,164.99,13.08169663]
[1754489789667,44.18,165.02,165.0,13.08169663]
[1754489789869,44.18,165.02,165.0,0.67]
[1754489790063,44.18,165.02,165.0,6.73025941]
[1754489790569,44.18,165.02,164.95,41.10621557]
[1754489790570,56.59169663,165.02,164.96,15.10621557]
[1754489790782,12.41169663,164.97,164.93,6.06317831]
[1754489790960,56.61169663,164.97,164.94,0.67]
[1754489791155,44.2,164.97,164.93,6.06317831]